[Event "Titled Tuesday Blitz June 1 2021"]
[White "Paravyan, David"]
[Black "Kezin, Roman"]
[WhiteFideId "4194985"]
[BlackFideId "24124621"]
[WhiteElo "2562"]
[BlackElo "2574"]
[Result "0-1"]
[Round "07"]
[TimeControl "180+1"]
[Date "2021.06.01"]
[WhiteClock "0:00:01"]
[BlackClock "0:00:04"]

1. e4 {[%clk 0:03:00]}  c5 {[%clk 0:03:00]} 2. Nc3 {[%clk 0:03:00]}  Nc6 {[%clk 0:02:59]} 3. Nf3 {[%clk 0:03:00]}  g6 {[%clk 0:02:51]} 4. d4 {[%clk 0:02:59]}  cxd4 {[%clk 0:02:52]} 5. Nxd4 {[%clk 0:02:59]}  Bg7 {[%clk 0:02:53]} 6. Be3 {[%clk 0:03:00]}  d6 {[%clk 0:02:50]} 7. Qd2 {[%clk 0:02:58]}  Nf6 {[%clk 0:02:50]} 8. f3 {[%clk 0:02:57]}  O-O {[%clk 0:02:50]} 9. O-O-O {[%clk 0:02:52]}  d5 {[%clk 0:02:49]} 10. Nxc6 {[%clk 0:02:53]}  bxc6 {[%clk 0:02:48]} 11. Bh6 {[%clk 0:02:54]}  Be6 {[%clk 0:02:48]} 12. e5 {[%clk 0:02:48]}  Nd7 {[%clk 0:02:46]} 13. Bxg7 {[%clk 0:02:42]}  Kxg7 {[%clk 0:02:47]} 14. f4 {[%clk 0:02:35]}  Qa5 {[%clk 0:02:23]} 15. b3 {[%clk 0:02:08]}  Qb4 {[%clk 0:02:04]} 16. Kb1 {[%clk 0:02:05]}  a5 {[%clk 0:02:04]} 17. Na4 {[%clk 0:01:59]}  Rfb8 {[%clk 0:01:59]} 18. Ka1 {[%clk 0:01:52]}  Bg4 {[%clk 0:01:46]} 19. Be2 {[%clk 0:01:49]}  Bxe2 {[%clk 0:01:45]} 20. Qxe2 {[%clk 0:01:50]}  Qxf4 {[%clk 0:01:45]} 21. Rhe1 {[%clk 0:01:40]}  Rb4 {[%clk 0:01:41]} 22. c4 {[%clk 0:00:50]}  e6 {[%clk 0:01:21]} 23. g3 {[%clk 0:00:49]}  Qg5 {[%clk 0:01:14]} 24. h4 {[%clk 0:00:34]}  Qxg3 {[%clk 0:01:09]} 25. h5 {[%clk 0:00:33]}  Rab8 {[%clk 0:00:48]} 26. Rd3 {[%clk 0:00:31]}  Qg5 {[%clk 0:00:44]} 27. Rh3 {[%clk 0:00:22]}  dxc4 {[%clk 0:00:32]} 28. h6+ {[%clk 0:00:21]}  Kg8 {[%clk 0:00:30]} 29. Qd1 {[%clk 0:00:15]}  cxb3 {[%clk 0:00:27]} 30. axb3 {[%clk 0:00:08]}  Nxe5 {[%clk 0:00:19]} 31. Nc5 {[%clk 0:00:08]}  a4 {[%clk 0:00:17]} 32. Qd6 {[%clk 0:00:06]}  Ng4 {[%clk 0:00:08]} 33. Rf3 {[%clk 0:00:06]}  axb3 {[%clk 0:00:07]} 34. Rxf7 {[%clk 0:00:05]}  b2+ {[%clk 0:00:07]} 35. Kb1 {[%clk 0:00:05]}  Ra8 {[%clk 0:00:04]} 36. Rg7+ {[%clk 0:00:01]}  Kh8 {[%clk 0:00:04]} 37. Rxh7+ {[%clk 0:00:02]}  Kxh7 {[%clk 0:00:05]} 38. Qc7+ {[%clk 0:00:01]}  Kxh6 {[%clk 0:00:03]} 39. Rh1+ {[%clk 0:00:02]}  Nh2 {[%clk 0:00:03]} 40. Rxh2+ {[%clk 0:00:01]}  Rh4 {[%clk 0:00:03]} 41. Rxh4+ {[%clk 0:00:01]}  Qxh4 {[%clk 0:00:04]} 0-1


[Site "https://www.chess.com"]

[Event "Titled Tuesday Blitz June 1 2021"]
[White "Perunovic, Milos"]
[Black "Vlassov, Nikolai"]
[WhiteFideId "921629"]
[BlackFideId "4103360"]
[WhiteElo "2787"]
[BlackElo "2596"]
[Result "1-0"]
[Round "07"]
[TimeControl "180+1"]
[Date "2021.06.01"]
[WhiteClock "0:00:14"]
[BlackClock "0:00:03"]

1. e4 {[%clk 0:03:00]}  Nc6 {[%clk 0:02:59]} 2. d4 {[%clk 0:02:58]}  d5 {[%clk 0:02:59]} 3. exd5 {[%clk 0:02:55]}  Qxd5 {[%clk 0:02:59]} 4. Nf3 {[%clk 0:02:54]}  Bg4 {[%clk 0:02:59]} 5. Be2 {[%clk 0:02:53]}  O-O-O {[%clk 0:02:59]} 6. c4 {[%clk 0:02:53]}  Qh5 {[%clk 0:02:58]} 7. Be3 {[%clk 0:02:49]}  Nh6 {[%clk 0:02:57]} 8. Nbd2 {[%clk 0:02:20]}  Nf5 {[%clk 0:02:57]} 9. d5 {[%clk 0:02:18]}  Nxe3 {[%clk 0:02:53]} 10. fxe3 {[%clk 0:02:19]}  Ne5 {[%clk 0:02:52]} 11. Nxe5 {[%clk 0:02:12]}  Bxe2 {[%clk 0:02:51]} 12. Qxe2 {[%clk 0:02:12]}  Qxe5 {[%clk 0:02:51]} 13. O-O {[%clk 0:02:12]}  e6 {[%clk 0:02:44]} 14. Nf3 {[%clk 0:02:11]}  Qh5 {[%clk 0:02:40]} 15. e4 {[%clk 0:02:08]}  exd5 {[%clk 0:02:31]} 16. cxd5 {[%clk 0:02:04]}  Bc5+ {[%clk 0:02:26]} 17. Kh1 {[%clk 0:02:04]}  Rhe8 {[%clk 0:02:26]} 18. Rac1 {[%clk 0:01:42]}  Bb6 {[%clk 0:02:26]} 19. Qc4 {[%clk 0:01:33]}  Qg4 {[%clk 0:02:17]} 20. Nd2 {[%clk 0:01:19]}  Rd7 {[%clk 0:02:08]} 21. Rf3 {[%clk 0:01:12]}  Kb8 {[%clk 0:01:44]} 22. b4 {[%clk 0:01:11]}  c6 {[%clk 0:01:35]} 23. Qb3 {[%clk 0:00:36]}  cxd5 {[%clk 0:01:29]} 24. exd5 {[%clk 0:00:36]}  Re2 {[%clk 0:01:09]} 25. Rg3 {[%clk 0:00:33]}  Qd4 {[%clk 0:00:52]} 26. Nf3 {[%clk 0:00:24]}  Qxd5 {[%clk 0:00:50]} 27. Rxg7 {[%clk 0:00:22]}  Qxb3 {[%clk 0:00:38]} 28. axb3 {[%clk 0:00:23]}  Rb2 {[%clk 0:00:26]} 29. h4 {[%clk 0:00:22]}  Rxb3 {[%clk 0:00:25]} 30. Ne5 {[%clk 0:00:19]}  Rd8 {[%clk 0:00:20]} 31. Nxf7 {[%clk 0:00:19]}  Rf8 {[%clk 0:00:16]} 32. Rxh7 {[%clk 0:00:16]}  Rxb4 {[%clk 0:00:16]} 33. g3 {[%clk 0:00:16]}  Rb2 {[%clk 0:00:15]} 34. h5 {[%clk 0:00:15]}  a5 {[%clk 0:00:15]} 35. h6 {[%clk 0:00:16]}  a4 {[%clk 0:00:15]} 36. Rg7 {[%clk 0:00:16]}  a3 {[%clk 0:00:14]} 37. h7 {[%clk 0:00:16]}  Ka7 {[%clk 0:00:10]} 38. Rg8 {[%clk 0:00:15]}  Rxf7 {[%clk 0:00:06]} 39. h8=Q {[%clk 0:00:15]}  Ka6 {[%clk 0:00:05]} 40. Ra8+ {[%clk 0:00:15]}  Ba7 {[%clk 0:00:03]} 41. Rxa7+ {[%clk 0:00:15]}  Kxa7 {[%clk 0:00:03]} 42. Qd4+ {[%clk 0:00:15]}  b6 {[%clk 0:00:03]} 43. Qa4+ {[%clk 0:00:15]}  Kb7 {[%clk 0:00:03]} 44. Qxa3 {[%clk 0:00:15]}  Rh7+ {[%clk 0:00:03]} 45. Kg1 {[%clk 0:00:15]}  Rhh2 {[%clk 0:00:04]} 46. Qf3+ {[%clk 0:00:15]}  Ka6 {[%clk 0:00:03]} 47. g4 {[%clk 0:00:14]} 1-0


[Site "https://www.chess.com"]

[Event "Titled Tuesday Blitz June 1 2021"]
[White "Plotnikov, Pavel"]
[Black "Csonka, Balazs"]
[WhiteFideId "4170342"]
[BlackFideId "742910"]
[WhiteElo "2298"]
[BlackElo "2404"]
[Result "0-1"]
[Round "07"]
[TimeControl "180+1"]
[Date "2021.06.01"]
[WhiteClock "0:00:14"]
[BlackClock "0:00:27"]

1. e4 {[%clk 0:03:00]}  c5 {[%clk 0:02:59]} 2. Nf3 {[%clk 0:02:56]}  Nc6 {[%clk 0:02:58]} 3. d4 {[%clk 0:02:53]}  cxd4 {[%clk 0:02:59]} 4. Nxd4 {[%clk 0:02:53]}  Qb6 {[%clk 0:03:00]} 5. Nxc6 {[%clk 0:02:50]}  bxc6 {[%clk 0:02:58]} 6. Bd3 {[%clk 0:02:50]}  g6 {[%clk 0:02:54]} 7. O-O {[%clk 0:02:51]}  Bg7 {[%clk 0:02:55]} 8. Nd2 {[%clk 0:02:48]}  Ba6 {[%clk 0:02:37]} 9. Qe2 {[%clk 0:02:46]}  Bxd3 {[%clk 0:02:36]} 10. Qxd3 {[%clk 0:02:47]}  Nf6 {[%clk 0:02:33]} 11. Nc4 {[%clk 0:02:46]}  Qb7 {[%clk 0:02:28]} 12. Bg5 {[%clk 0:02:35]}  O-O {[%clk 0:02:21]} 13. Rad1 {[%clk 0:02:34]}  d5 {[%clk 0:02:18]} 14. exd5 {[%clk 0:02:34]}  cxd5 {[%clk 0:02:19]} 15. Ne3 {[%clk 0:02:32]}  e6 {[%clk 0:02:09]} 16. b3 {[%clk 0:02:15]}  Ne4 {[%clk 0:02:05]} 17. Bh4 {[%clk 0:02:13]}  Nc3 {[%clk 0:02:01]} 18. Rd2 {[%clk 0:02:05]}  Nxa2 {[%clk 0:01:57]} 19. Ng4 {[%clk 0:01:55]}  Nb4 {[%clk 0:01:42]} 20. Qh3 {[%clk 0:01:48]}  f5 {[%clk 0:01:36]} 21. Ne3 {[%clk 0:01:47]}  Rac8 {[%clk 0:01:25]} 22. c4 {[%clk 0:01:39]}  d4 {[%clk 0:01:22]} 23. Nd1 {[%clk 0:01:36]}  e5 {[%clk 0:01:20]} 24. Nb2 {[%clk 0:01:36]}  e4 {[%clk 0:01:17]} 25. Bg3 {[%clk 0:01:35]}  Rfe8 {[%clk 0:01:07]} 26. Na4 {[%clk 0:01:34]}  Nd3 {[%clk 0:01:04]} 27. Rb1 {[%clk 0:01:31]}  Rxc4 {[%clk 0:01:01]} 28. Ra2 {[%clk 0:01:17]}  Qxb3 {[%clk 0:00:54]} 29. Raa1 {[%clk 0:00:36]}  Rxa4 {[%clk 0:00:47]} 30. Bd6 {[%clk 0:00:37]}  Qb2 {[%clk 0:00:30]} 31. Rf1 {[%clk 0:00:17]}  Rxa1 {[%clk 0:00:28]} 32. g3 {[%clk 0:00:12]}  Qxf2+ {[%clk 0:00:26]} 33. Kh1 {[%clk 0:00:13]}  Rxf1+ {[%clk 0:00:27]} 34. Qxf1 {[%clk 0:00:14]}  Qxf1# {[%clk 0:00:27]} 0-1


[Site "https://www.chess.com"]

[Event "Titled Tuesday Blitz June 1 2021"]
[White "Prydun, Andriy"]
[Black "Ezat, Mohamed"]
[WhiteFideId "14145898"]
[BlackFideId "10600906"]
[WhiteElo "2033"]
[BlackElo "2417"]
[Result "1-0"]
[Round "07"]
[TimeControl "180+1"]
[Date "2021.06.01"]
[WhiteClock "0:00:17"]
[BlackClock "0:00:07"]

1. d4 {[%clk 0:03:00]}  Nf6 {[%clk 0:02:59]} 2. Nf3 {[%clk 0:03:01]}  g6 {[%clk 0:03:00]} 3. Bg5 {[%clk 0:03:00]}  Ne4 {[%clk 0:02:59]} 4. Bf4 {[%clk 0:02:57]}  Bg7 {[%clk 0:02:58]} 5. Nbd2 {[%clk 0:02:57]}  Nxd2 {[%clk 0:02:57]} 6. Qxd2 {[%clk 0:02:56]}  d5 {[%clk 0:02:57]} 7. Bh6 {[%clk 0:02:54]}  Bf6 {[%clk 0:02:37]} 8. c3 {[%clk 0:02:43]}  Bg4 {[%clk 0:02:30]} 9. Ne5 {[%clk 0:02:41]}  Bxe5 {[%clk 0:02:20]} 10. dxe5 {[%clk 0:02:40]}  Nd7 {[%clk 0:02:20]} 11. Qxd5 {[%clk 0:02:35]}  c6 {[%clk 0:02:19]} 12. Qd4 {[%clk 0:02:31]}  Be6 {[%clk 0:02:18]} 13. e3 {[%clk 0:02:25]}  Qa5 {[%clk 0:02:16]} 14. Bf4 {[%clk 0:02:15]}  h6 {[%clk 0:02:13]} 15. Bc4 {[%clk 0:02:08]}  Nf8 {[%clk 0:01:10]} 16. Bxe6 {[%clk 0:01:47]}  Nxe6 {[%clk 0:01:00]} 17. Qc4 {[%clk 0:01:48]}  O-O-O {[%clk 0:00:57]} 18. O-O {[%clk 0:01:44]}  g5 {[%clk 0:00:56]} 19. Bg3 {[%clk 0:01:44]}  h5 {[%clk 0:00:56]} 20. f4 {[%clk 0:01:42]}  h4 {[%clk 0:00:52]} 21. Bf2 {[%clk 0:01:41]}  h3 {[%clk 0:00:40]} 22. f5 {[%clk 0:01:35]}  hxg2 {[%clk 0:00:39]} 23. Rfd1 {[%clk 0:01:34]}  Qxe5 {[%clk 0:00:35]} 24. Bg3 {[%clk 0:01:07]}  Qxe3+ {[%clk 0:00:35]} 25. Kxg2 {[%clk 0:01:03]}  Rxd1 {[%clk 0:00:19]} 26. Rxd1 {[%clk 0:01:02]}  Nf4+ {[%clk 0:00:19]} 27. Bxf4 {[%clk 0:00:57]}  gxf4 {[%clk 0:00:07]} 28. Rf1 {[%clk 0:00:17]} 1-0


[Site "https://www.chess.com"]

[Event "Titled Tuesday Blitz June 1 2021"]
[White "Quintiliano Pinto, Renato R."]
[Black "Fayzullaev, Akmal"]
[WhiteFideId "2117568"]
[BlackFideId "14200554"]
[WhiteElo "2725"]
[BlackElo "2536"]
[Result "1-0"]
[Round "07"]
[TimeControl "180+1"]
[Date "2021.06.01"]
[WhiteClock "0:00:14"]
[BlackClock "0:01:23"]

1. Nf3 {[%clk 0:03:00]}  Nf6 {[%clk 0:02:57]} 2. c4 {[%clk 0:03:00]}  g6 {[%clk 0:02:58]} 3. Nc3 {[%clk 0:03:00]}  Bg7 {[%clk 0:02:59]} 4. d4 {[%clk 0:03:01]}  d6 {[%clk 0:03:00]} 5. Bg5 {[%clk 0:03:00]}  O-O {[%clk 0:03:00]} 6. e3 {[%clk 0:03:00]}  c5 {[%clk 0:02:59]} 7. d5 {[%clk 0:02:59]}  e6 {[%clk 0:02:59]} 8. Nd2 {[%clk 0:02:57]}  exd5 {[%clk 0:03:00]} 9. cxd5 {[%clk 0:02:58]}  a6 {[%clk 0:02:58]} 10. a4 {[%clk 0:02:57]}  Re8 {[%clk 0:02:57]} 11. Be2 {[%clk 0:02:56]}  Nbd7 {[%clk 0:02:47]} 12. O-O {[%clk 0:02:52]}  Qc7 {[%clk 0:02:46]} 13. h3 {[%clk 0:02:48]}  b6 {[%clk 0:02:45]} 14. Rc1 {[%clk 0:02:26]}  Bb7 {[%clk 0:02:44]} 15. e4 {[%clk 0:02:16]}  Rac8 {[%clk 0:02:42]} 16. Bf4 {[%clk 0:02:08]}  Ne5 {[%clk 0:02:40]} 17. b3 {[%clk 0:01:57]}  Rcd8 {[%clk 0:02:28]} 18. Bh2 {[%clk 0:01:55]}  Bc8 {[%clk 0:02:22]} 19. f4 {[%clk 0:01:47]}  Ned7 {[%clk 0:02:22]} 20. Kh1 {[%clk 0:01:45]}  Re7 {[%clk 0:02:20]} 21. Bf3 {[%clk 0:01:37]}  Rde8 {[%clk 0:02:16]} 22. Nc4 {[%clk 0:01:06]}  Nxe4 {[%clk 0:02:14]} 23. Nxe4 {[%clk 0:01:05]}  Rxe4 {[%clk 0:02:15]} 24. Bxe4 {[%clk 0:01:05]}  Rxe4 {[%clk 0:02:15]} 25. f5 {[%clk 0:01:06]}  Ne5 {[%clk 0:02:10]} 26. f6 {[%clk 0:00:51]}  Nxc4 {[%clk 0:02:08]} 27. Rxc4 {[%clk 0:00:49]}  Rxc4 {[%clk 0:02:06]} 28. bxc4 {[%clk 0:00:49]}  Bh8 {[%clk 0:01:52]} 29. Qe2 {[%clk 0:00:44]}  Kf8 {[%clk 0:01:52]} 30. Qe3 {[%clk 0:00:38]}  Qd8 {[%clk 0:01:52]} 31. Qf4 {[%clk 0:00:31]}  Bf5 {[%clk 0:01:39]} 32. Qxd6+ {[%clk 0:00:17]}  Qxd6 {[%clk 0:01:39]} 33. Bxd6+ {[%clk 0:00:18]}  Ke8 {[%clk 0:01:40]} 34. Be5 {[%clk 0:00:13]}  Bd3 {[%clk 0:01:39]} 35. Rc1 {[%clk 0:00:13]}  Kd7 {[%clk 0:01:36]} 36. Kg1 {[%clk 0:00:13]}  h5 {[%clk 0:01:29]} 37. g4 {[%clk 0:00:13]}  hxg4 {[%clk 0:01:29]} 38. hxg4 {[%clk 0:00:14]}  g5 {[%clk 0:01:29]} 39. Kf2 {[%clk 0:00:14]}  Be4 {[%clk 0:01:23]} 40. Ke3 {[%clk 0:00:14]}  Bg6 {[%clk 0:01:23]} 41. Rh1 {[%clk 0:00:14]}  Bxf6 {[%clk 0:01:23]} 42. Bxf6 {[%clk 0:00:14]} 1-0


[Site "https://www.chess.com"]

[Event "Titled Tuesday Blitz June 1 2021"]
[White "Quintin Navarro, Alberto"]
[Black "Stelmaszyk, Nico"]
[WhiteFideId "2292688"]
[BlackFideId "16200462"]
[WhiteElo "2289"]
[BlackElo "2119"]
[Result "1-0"]
[Round "07"]
[TimeControl "180+1"]
[Date "2021.06.01"]
[WhiteClock "0:00:51"]
[BlackClock "0:00:02"]

1. c4 {[%clk 0:03:00]}  c5 {[%clk 0:02:56]} 2. g3 {[%clk 0:02:59]}  g6 {[%clk 0:02:57]} 3. Bg2 {[%clk 0:03:00]}  Bg7 {[%clk 0:02:57]} 4. d3 {[%clk 0:03:00]}  d6 {[%clk 0:02:57]} 5. Nc3 {[%clk 0:03:01]}  Nc6 {[%clk 0:02:58]} 6. Nf3 {[%clk 0:03:01]}  Nf6 {[%clk 0:02:58]} 7. O-O {[%clk 0:03:01]}  O-O {[%clk 0:02:58]} 8. Bf4 {[%clk 0:03:00]}  Bf5 {[%clk 0:02:57]} 9. Rb1 {[%clk 0:02:59]}  Rb8 {[%clk 0:02:57]} 10. a3 {[%clk 0:03:00]}  a6 {[%clk 0:02:57]} 11. b4 {[%clk 0:02:59]}  cxb4 {[%clk 0:02:47]} 12. axb4 {[%clk 0:02:59]}  b5 {[%clk 0:02:48]} 13. c5 {[%clk 0:02:59]}  e5 {[%clk 0:02:25]} 14. Bg5 {[%clk 0:02:56]}  h6 {[%clk 0:02:20]} 15. Bxf6 {[%clk 0:02:56]}  Qxf6 {[%clk 0:02:17]} 16. Nd5 {[%clk 0:02:47]}  Qe6 {[%clk 0:02:11]} 17. Nd2 {[%clk 0:02:40]}  dxc5 {[%clk 0:01:57]} 18. bxc5 {[%clk 0:02:40]}  Bh3 {[%clk 0:01:58]} 19. Nc7 {[%clk 0:02:35]}  Qc8 {[%clk 0:01:51]} 20. Bxh3 {[%clk 0:02:31]}  Qxc7 {[%clk 0:01:50]} 21. Bg2 {[%clk 0:02:30]}  a5 {[%clk 0:01:44]} 22. Ne4 {[%clk 0:02:28]}  b4 {[%clk 0:01:33]} 23. e3 {[%clk 0:02:19]}  Rfd8 {[%clk 0:01:32]} 24. Qb3 {[%clk 0:02:13]}  Bf8 {[%clk 0:01:21]} 25. Rfc1 {[%clk 0:02:12]}  Kg7 {[%clk 0:01:12]} 26. g4 {[%clk 0:02:03]}  Qd7 {[%clk 0:01:06]} 27. h3 {[%clk 0:02:00]}  Be7 {[%clk 0:01:01]} 28. Nd6 {[%clk 0:01:55]}  Rf8 {[%clk 0:00:31]} 29. Qa4 {[%clk 0:01:50]}  Rbc8 {[%clk 0:00:20]} 30. Nxc8 {[%clk 0:01:48]}  Rxc8 {[%clk 0:00:21]} 31. d4 {[%clk 0:01:40]}  exd4 {[%clk 0:00:20]} 32. exd4 {[%clk 0:01:41]}  Qxd4 {[%clk 0:00:15]} 33. Bxc6 {[%clk 0:01:34]}  Bxc5 {[%clk 0:00:15]} 34. Rf1 {[%clk 0:01:31]}  h5 {[%clk 0:00:15]} 35. Bf3 {[%clk 0:01:26]}  hxg4 {[%clk 0:00:14]} 36. Bxg4 {[%clk 0:01:21]}  Qf4 {[%clk 0:00:11]} 37. Qb3 {[%clk 0:01:15]}  Rh8 {[%clk 0:00:08]} 38. Qf3 {[%clk 0:01:10]}  Qg5 {[%clk 0:00:08]} 39. Rbc1 {[%clk 0:01:07]}  Bd6 {[%clk 0:00:08]} 40. Rcd1 {[%clk 0:01:05]}  Be5 {[%clk 0:00:07]} 41. Rd7 {[%clk 0:01:04]}  Bf6 {[%clk 0:00:05]} 42. Qd5 {[%clk 0:00:57]}  Rf8 {[%clk 0:00:03]} 43. Qxg5 {[%clk 0:00:56]}  Bxg5 {[%clk 0:00:04]} 44. Ra7 {[%clk 0:00:55]}  b3 {[%clk 0:00:04]} 45. Rxa5 {[%clk 0:00:53]}  b2 {[%clk 0:00:04]} 46. Rxg5 {[%clk 0:00:53]}  Ra8 {[%clk 0:00:02]} 47. Rb5 {[%clk 0:00:51]} 1-0


[Site "https://www.chess.com"]

[Event "Titled Tuesday Blitz June 1 2021"]
[White "Romanchuk, Viktor"]
[Black "Hess, Robert"]
[WhiteFideId "14109271"]
[BlackFideId "2022036"]
[WhiteElo "2559"]
[BlackElo "2736"]
[Result "0-1"]
[Round "07"]
[TimeControl "180+1"]
[Date "2021.06.01"]
[WhiteClock "0:00:01"]
[BlackClock "0:00:05"]

1. d4 {[%clk 0:03:00]}  g6 {[%clk 0:03:00]} 2. c4 {[%clk 0:02:59]}  Bg7 {[%clk 0:03:01]} 3. Nf3 {[%clk 0:02:59]}  c5 {[%clk 0:02:59]} 4. g3 {[%clk 0:02:58]}  cxd4 {[%clk 0:02:59]} 5. Nxd4 {[%clk 0:02:59]}  Nc6 {[%clk 0:03:00]} 6. Nb3 {[%clk 0:02:58]}  Nf6 {[%clk 0:02:58]} 7. Bg2 {[%clk 0:02:58]}  O-O {[%clk 0:02:58]} 8. O-O {[%clk 0:02:57]}  d6 {[%clk 0:02:57]} 9. Nc3 {[%clk 0:02:57]}  Bg4 {[%clk 0:02:52]} 10. c5 {[%clk 0:02:48]}  dxc5 {[%clk 0:02:48]} 11. Nxc5 {[%clk 0:02:41]}  Qc8 {[%clk 0:02:48]} 12. Qb3 {[%clk 0:02:11]}  b6 {[%clk 0:02:43]} 13. Nd3 {[%clk 0:02:08]}  Nd4 {[%clk 0:02:42]} 14. Qd1 {[%clk 0:02:06]}  Rd8 {[%clk 0:02:41]} 15. Bxa8 {[%clk 0:02:00]}  Qxa8 {[%clk 0:02:41]} 16. f3 {[%clk 0:02:00]}  Bh3 {[%clk 0:02:36]} 17. Re1 {[%clk 0:01:57]}  b5 {[%clk 0:01:41]} 18. Bf4 {[%clk 0:01:05]}  b4 {[%clk 0:01:29]} 19. Na4 {[%clk 0:01:00]}  Nh5 {[%clk 0:01:00]} 20. Be3 {[%clk 0:00:57]}  e5 {[%clk 0:00:50]} 21. Nac5 {[%clk 0:00:43]}  Bf8 {[%clk 0:00:28]} 22. Qa4 {[%clk 0:00:15]}  Nxe2+ {[%clk 0:00:13]} 23. Rxe2 {[%clk 0:00:15]}  Qxf3 {[%clk 0:00:14]} 24. Rae1 {[%clk 0:00:12]}  Nxg3 {[%clk 0:00:11]} 25. hxg3 {[%clk 0:00:10]}  Qxg3+ {[%clk 0:00:11]} 26. Kh1 {[%clk 0:00:11]}  Bg4 {[%clk 0:00:11]} 27. Qc2 {[%clk 0:00:08]}  e4 {[%clk 0:00:08]} 28. Rg2 {[%clk 0:00:06]}  Bf3 {[%clk 0:00:08]} 29. Qf2 {[%clk 0:00:06]}  Qh3+ {[%clk 0:00:05]} 30. Kg1 {[%clk 0:00:06]}  exd3 {[%clk 0:00:05]} 31. Rh2 {[%clk 0:00:01]}  Qg4+ {[%clk 0:00:05]} 32. Kf1 {[%clk 0:00:01]}  Bxc5 {[%clk 0:00:04]} 33. Bxc5 {[%clk 0:00:01]}  d2 {[%clk 0:00:05]} 0-1


[Site "https://www.chess.com"]

[Event "Titled Tuesday Blitz June 1 2021"]
[White "Sadovsky, Artem"]
[Black "Sawlin, Leonid"]
[WhiteFideId "4155840"]
[BlackFideId "4689542"]
[WhiteElo "2476"]
[BlackElo "2412"]
[Result "1/2-1/2"]
[Round "07"]
[TimeControl "180+1"]
[Date "2021.06.01"]
[WhiteClock "0:00:03"]
[BlackClock "0:00:58"]

1. Nf3 {[%clk 0:02:59]}  d5 {[%clk 0:02:55]} 2. e3 {[%clk 0:02:58]}  Nd7 {[%clk 0:02:53]} 3. c4 {[%clk 0:02:57]}  c6 {[%clk 0:02:51]} 4. b3 {[%clk 0:02:57]}  e5 {[%clk 0:02:51]} 5. Bb2 {[%clk 0:02:57]}  e4 {[%clk 0:02:47]} 6. Nd4 {[%clk 0:02:57]}  Ngf6 {[%clk 0:02:47]} 7. cxd5 {[%clk 0:02:53]}  cxd5 {[%clk 0:02:47]} 8. Nc3 {[%clk 0:02:48]}  Nc5 {[%clk 0:02:45]} 9. d3 {[%clk 0:02:34]}  Bd6 {[%clk 0:02:27]} 10. dxe4 {[%clk 0:02:30]}  Ncxe4 {[%clk 0:02:26]} 11. Bb5+ {[%clk 0:02:25]}  Bd7 {[%clk 0:02:25]} 12. Bxd7+ {[%clk 0:02:02]}  Qxd7 {[%clk 0:02:26]} 13. Nxe4 {[%clk 0:01:54]}  dxe4 {[%clk 0:02:22]} 14. O-O {[%clk 0:01:51]}  O-O {[%clk 0:02:19]} 15. Nb5 {[%clk 0:01:28]}  Bxh2+ {[%clk 0:02:08]} 16. Kxh2 {[%clk 0:01:29]}  Qxb5 {[%clk 0:02:07]} 17. Bxf6 {[%clk 0:01:29]}  gxf6 {[%clk 0:02:07]} 18. Qg4+ {[%clk 0:01:29]}  Qg5 {[%clk 0:02:06]} 19. Qxe4 {[%clk 0:01:29]}  Qe5+ {[%clk 0:02:06]} 20. Qxe5 {[%clk 0:01:28]}  fxe5 {[%clk 0:02:07]} 21. Rfd1 {[%clk 0:01:25]}  Rad8 {[%clk 0:02:07]} 22. Rac1 {[%clk 0:01:25]}  Rxd1 {[%clk 0:02:06]} 23. Rxd1 {[%clk 0:01:25]}  f6 {[%clk 0:02:06]} 24. Kg3 {[%clk 0:00:59]}  Rf7 {[%clk 0:02:04]} 25. Kf3 {[%clk 0:00:54]}  f5 {[%clk 0:02:04]} 26. Rd5 {[%clk 0:00:54]}  Re7 {[%clk 0:02:04]} 27. g4 {[%clk 0:00:36]}  fxg4+ {[%clk 0:01:53]} 28. Kxg4 {[%clk 0:00:37]}  Kg7 {[%clk 0:01:54]} 29. Kf5 {[%clk 0:00:21]}  Rf7+ {[%clk 0:01:37]} 30. Kxe5 {[%clk 0:00:22]}  Rxf2 {[%clk 0:01:38]} 31. Rd7+ {[%clk 0:00:22]}  Kg6 {[%clk 0:01:32]} 32. a4 {[%clk 0:00:21]}  h5 {[%clk 0:01:30]} 33. Rxb7 {[%clk 0:00:21]}  h4 {[%clk 0:01:30]} 34. Rxa7 {[%clk 0:00:20]}  h3 {[%clk 0:01:30]} 35. Rc7 {[%clk 0:00:14]}  Rb2 {[%clk 0:00:59]} 36. Kf4 {[%clk 0:00:13]}  Rxb3 {[%clk 0:00:58]} 37. Rc6+ {[%clk 0:00:07]}  Kf7 {[%clk 0:00:58]} 38. a5 {[%clk 0:00:05]}  h2 {[%clk 0:00:58]} 39. Rh6 {[%clk 0:00:05]}  Ra3 {[%clk 0:00:57]} 40. a6 {[%clk 0:00:05]}  Rxa6 {[%clk 0:00:56]} 41. Rxh2 {[%clk 0:00:05]}  Ra5 {[%clk 0:00:54]} 42. Rh7+ {[%clk 0:00:04]}  Kf6 {[%clk 0:00:54]} 43. Rb7 {[%clk 0:00:04]}  Ke6 {[%clk 0:00:54]} 44. Rb6+ {[%clk 0:00:04]}  Ke7 {[%clk 0:00:54]} 45. e4 {[%clk 0:00:04]}  Kf7 {[%clk 0:00:55]} 46. Rc6 {[%clk 0:00:04]}  Ke7 {[%clk 0:00:55]} 47. Rg6 {[%clk 0:00:04]}  Kf7 {[%clk 0:00:55]} 48. Rg1 {[%clk 0:00:04]}  Kf6 {[%clk 0:00:55]} 49. Rc1 {[%clk 0:00:04]}  Ke6 {[%clk 0:00:55]} 50. Rd1 {[%clk 0:00:05]}  Ke7 {[%clk 0:00:55]} 51. Rb1 {[%clk 0:00:03]}  Ke6 {[%clk 0:00:54]} 52. Rb6+ {[%clk 0:00:03]}  Ke7 {[%clk 0:00:55]} 53. Rb7+ {[%clk 0:00:04]}  Ke6 {[%clk 0:00:55]} 54. Rh7 {[%clk 0:00:04]}  Kf6 {[%clk 0:00:55]} 55. Rh6+ {[%clk 0:00:05]}  Kf7 {[%clk 0:00:55]} 56. Rd6 {[%clk 0:00:05]}  Ke7 {[%clk 0:00:56]} 57. Rd4 {[%clk 0:00:05]}  Ke6 {[%clk 0:00:56]} 58. Rb4 {[%clk 0:00:06]}  Kf6 {[%clk 0:00:56]} 59. Rb6+ {[%clk 0:00:06]}  Ke7 {[%clk 0:00:56]} 60. e5 {[%clk 0:00:07]}  Ra1 {[%clk 0:00:56]} 61. Rb7+ {[%clk 0:00:06]}  Ke6 {[%clk 0:00:56]} 62. Rb6+ {[%clk 0:00:05]}  Ke7 {[%clk 0:00:56]} 63. Ke4 {[%clk 0:00:04]}  Re1+ {[%clk 0:00:55]} 64. Kd5 {[%clk 0:00:04]}  Rd1+ {[%clk 0:00:56]} 65. Ke4 {[%clk 0:00:02]}  Re1+ {[%clk 0:00:56]} 66. Kd5 {[%clk 0:00:02]}  Rd1+ {[%clk 0:00:57]} 67. Kc6 {[%clk 0:00:03]}  Ke6 {[%clk 0:00:56]} 68. Kc7+ {[%clk 0:00:02]}  Kxe5 {[%clk 0:00:56]} 69. Rc6 {[%clk 0:00:03]}  Ra1 {[%clk 0:00:54]} 70. Rb6 {[%clk 0:00:03]}  Rc1+ {[%clk 0:00:54]} 71. Rc6 {[%clk 0:00:03]}  Rb1 {[%clk 0:00:55]} 72. Rb6 {[%clk 0:00:04]}  Ra1 {[%clk 0:00:55]} 73. Rc6 {[%clk 0:00:04]}  Kd5 {[%clk 0:00:56]} 74. Rd6+ {[%clk 0:00:04]}  Kc5 {[%clk 0:00:56]} 75. Rc6+ {[%clk 0:00:05]}  Kd5 {[%clk 0:00:57]} 76. Rd6+ {[%clk 0:00:05]}  Ke5 {[%clk 0:00:57]} 77. Rc6 {[%clk 0:00:05]}  Rh1 {[%clk 0:00:58]} 78. Kb7 {[%clk 0:00:04]}  Rh7+ {[%clk 0:00:57]} 79. Rc7 {[%clk 0:00:04]}  Rxc7+ {[%clk 0:00:58]} 80. Kxc7 {[%clk 0:00:03]} 1/2-1/2


[Site "https://www.chess.com"]